Cogmind - Beta 13 @@@ ROGUE MODE // 2024.05.05 @ 17:18:40 Player: Millea Result: Destroyed by as-27943 with Assembled F-torch Performance ------------- Evolutions (1) 500 Regions Visited (3) 600 Robots Destroyed (24) 120 Value Destroyed (666) 666 Prototype IDs (5) 100 Alien Tech Used (0) 0 Bonus (0) 0 TOTAL SCORE: 1986 Bonus ------- None Cogmind --------- Core Integrity 0/400 Matter 300/300 Energy 46/100 System Corruption 1% Temperature Cool (20) Movement Core (50) Location -9/Mines Parts ------- > --- POWER (1) -------- (None) > --- PROPULSION (2) --- (None) > --- UTILITY (4) ------ (None) > --- WEAPON (2) ------- (None) > --- INVENTORY (5) ---- Seismic Detector Particle Gun Particle Gun Improved Assault Rifle Mining Laser Peak State ------------ > --- POWER ------------ Improved Ion Engine > --- PROPULSION ------- Improved Treads Improved Treads > --- UTILITY ---------- Heat Sink Improved Heat Sink Large Storage Unit Terrain Scan Processor > --- WEAPON ----------- Advanced Beam Cannon Improved Assault Rifle > --- INVENTORY -------- Light Ion Engine Light Ion Engine Light Treads Light Treads Improved Treads Improved Treads Seismic Detector Utility Shielding High-powered Tractor Beam Particle Gun Particle Gun Light EM Pulse Cannon Assault Rifle Improved Light Cannon Mining Laser [Rating: 21] Favorites ----------- Power Improved Ion Engine Engine Improved Ion Engine Propulsion Improved Treads Treads Improved Treads Flight Unit Improved Flight Unit Utility Improved Heat Sink Device Improved Heat Sink Storage Large Storage Unit Processor Terrain Scan Processor Protection Light Armor Plating Weapon Improved Light Cannon Energy Gun Medium Laser Energy Cannon Advanced Beam Cannon Ballistic Gun Assault Rifle Ballistic Cannon Improved Light Cannon Build | -11 -10 -9 -9 ------- Run | Yrd Mat Mat Min Slots Evolved 2 | . . 2 . Power . | . . . . Propulsion . | . . . . Utility 2 | . . 2 . Weapon . | . . . . Parts Attached 36 | 7 6 14 9 Power 7 | 1 1 3 2 Engine 7 | 1 1 3 2 Core . | . . . . Reactor . | . . . . Propulsion 9 | 2 2 2 3 Treads 8 | 2 2 1 3 Leg . | . . . . Wheel . | . . . . Hover . | . . . . Flight 1 | . . 1 . Utility 10 | 2 2 4 2 Device 4 | 1 1 1 1 Storage 2 | 1 1 . . Processor 2 | . . 2 . Hackware . | . . . . Protection 2 | . . 1 1 Artifact . | . . . . Weapon 10 | 2 1 5 2 Energy Gun 2 | 1 1 . . Energy Cannon 2 | . . 1 1 Ballistic Gun 2 | 1 . 1 . Ballistic Cannon 4 | . . 3 1 Launcher . | . . . . Special Weapon . | . . . . Impact Weapon . | . . . . Slashing Weapon . | . . . . Piercing Weapon . | . . . . Special Melee Weapon . | . . . . Unidentified Prototypes 2 | . . 2 . Parts Lost 14 | . 2 1 11 Power 5 | . 1 1 3 Propulsion 4 | . 1 . 3 Utility 3 | . . . 3 Weapon 2 | . . . 2 Highest Loss Streak 11 | . 2 1 11 To Critical Strikes . | . . . . Average Slot Usage (%) 93 | . 95 94 70 Engine 11 | . 14 10 4 Treads 22 | . 24 21 17 Device 16 | . 14 17 11 Storage 11 | . 14 11 8 Processor 5 | . . 7 4 Protection 2 | . . 2 8 Energy Gun 9 | . 24 4 . Energy Cannon 4 | . . 5 8 Ballistic Cannon 8 | . . 11 6 Naked Turns 6 | . . . 6 Heaviest Build 40 | 15 27 40 39 Greatest Support 46 | 40 46 46 46 Greatest Overweight (x) 1 | 1 . 1 . Average Overweight (x) . | . . . . Largest Inventory Capacity 15 | 8 15 15 15 Average Capacity 12 | 6 8 15 13 Most Carried 15 | 7 8 15 15 Average Carried 10 | 4 7 13 9 Final Capacity 15 | 8 15 15 5 Final Carried 15 | 7 8 15 5 Class Distribution -------------------- 92% | Mutant 7% | Scavenger-Mutant Dominant Class ---------------- Mutant | -10/Materials Mutant | -9/Materials Mutant | -9/Mines Resources | -11 -10 -9 -9 ----------- Run | Yrd Mat Mat Min Matter Collected 791 | 278 58 357 98 Remotely 98 | . . . 98 Salvage Created 870 | 124 220 433 93 Parts 34 | 3 9 22 . Haulers Intercepted . | . . . . Recyclers Shooed . | . . . . Parts Field Recycled . | . . . . Retrieved Matter . | . . . . Parts Self-Destructed . | . . . . Prevented . | . . . . Kills | -11 -10 -9 -9 ------- Run | Yrd Mat Mat Min Combat Hostiles Destroyed 26 | . 7 11 8 Guns 7 | . 7 . . Cannons 19 | . . 11 8 Classes Destroyed 8 | 2 3 2 1 Tunneler 2 | 2 . . . Recycler 2 | 1 . 1 . Operator 1 | . . 1 . Watcher 1 | . 1 . . Swarmer 4 | . 3 1 . Grunt 11 | . 4 7 . Sentry 3 | . . 3 . Assembled 8 | . . . 8 Best Kill Streak 13 | 3 5 5 13 Combat Bots Only 9 | . 5 3 9 Max Kills in Single Turn 2 | 1 1 1 2 Gunslinging . | . . . . Exploded . | . . . . Melee . | . . . . Uniques/NPCs Destroyed . | . . . . Combat | -11 -10 -9 -9 -------- Run | Yrd Mat Mat Min Hostile Shots Fired 244 | . 66 80 98 Missed 45 | . 6 23 16 Damage Taken 2696 | . 773 646 1277 Core 635 | . 226 81 328 Absorbed by Shields . | . . . . Redirected to Shielding 44 | . . . 44 Core Remaining (%) 54 | 100 9 . . Volleys Fired 77 | 6 22 37 12 Largest 2 | 2 2 2 2 Hottest 107 | 70 90 107 107 Shots Fired 147 | 12 41 74 20 Gun 55 | 12 41 2 . Cannon 92 | . . 72 20 Launcher . | . . . . Special . | . . . . Kinetic 77 | 6 10 51 10 Thermal 70 | 6 31 23 10 Explosive . | . . . . Electromagnetic . | . . . . Robot Hit Streak 11 | 4 11 7 5 Robot Miss Streak 6 | 2 2 6 1 Penetration Max . | . . . . Secondary Targets 3 | . 3 . . Max Gunslinging Chain 1 | . 1 . . Shots Hit Robots 94 | 7 30 45 12 Core Hits 41 | 4 14 14 9 Critical Kills . | . . . . Critical Parts Destroyed . | . . . . Critical Strikes 5 | . 3 2 . Burn 3 | . 3 . . Blast 2 | . . 2 . Melee Attacks . | . . . . Impact . | . . . . Slashing . | . . . . Piercing . | . . . . Sneak Attacks . | . . . . Combat Hostiles . | . . . . Follow-up Attacks . | . . . . Damage Inflicted 1880 | 97 401 1005 377 Guns 494 | 97 397 . . Cannons 1382 | . . 1005 377 Explosions . | . . . . Melee . | . . . . Ramming 4 | . 4 . . Kinetic 1004 | 49 106 657 192 Thermal 872 | 48 291 348 185 Explosive . | . . . . Electromagnetic . | . . . . Impact . | . . . . Slashing . | . . . . Piercing . | . . . . Highest Corruption 1 | . . . 1 Average Corruption 1 | . . . 1 Corruption Purged . | . . . . Corruption Blocked . | . . . . Overload Shots . | . . . . Overflow Damage 10 | . . 7 3 Projectiles 10 | . . 7 3 Explosions . | . . . . Melee . | . . . . Knockbacks 9 | . . 9 . Impact . | . . . . Kinetic 9 | . . 9 . Secondary . | . . . . Self-Inflicted Damage . | . . . . Shots . | . . . . Rammed 2 | . 2 . . Targets Rammed 2 | . 2 . . Kicked . | . . . . Crushed . | . . . . Highest Temperature 287 | 18 287 174 88 Average Temperature 84 | 10 153 51 33 Received Heat Transfer 1178 | . 399 279 500 Effects 3 | . 3 . . Interference 3 | . 3 . . Siege Activations . | . . . . Robots Corrupted . | . . . . Combat Hostiles . | . . . . Parts Fried . | . . . . Impact Corruptions . | . . . . Robots Melted . | . . . . Combat Hostiles . | . . . . Parts Melted . | . . . . Heat Transferred 2050 | 148 977 592 333 Parts Sabotaged . | . . . . Parts Stolen . | . . . . Parts Stripped . | . . . . Power Chain Reactions . | . . . . Alert | -11 -10 -9 -9 ------- Run | Yrd Mat Mat Min Peak Influence 339 | 15 214 339 132 Initial 132 | . 9 90 132 Average 145 | 4 164 162 71 Maximum Alert Level 1 | . 1 1 . Low Security (%) 61 | 100 47 58 100 Level 1 38 | . 52 41 . Level 2 . | . . . . Level 3 . | . . . . Level 4 . | . . . . Level 5 . | . . . . High Security . | . . . . Max Security . | . . . . Squads Dispatched 3 | . . 3 . Investigation 2 | . . 2 . Extermination . | . . . . Reinforcement 1 | . . 1 . Assault . | . . . . Garrison . | . . . . Intercept . | . . . . Searches Triggered . | . . . . Construction Impeded . | . . . . Haulers Reinforced . | . . . . Active Scanning Responses . | . . . . Cargo Convoy Interrupts . | . . . . Stealth | -11 -10 -9 -9 --------- Run | Yrd Mat Mat Min Distress Signals 2 | . 1 1 . Communications Jammed . | . . . . Distress Signals . | . . . . Times Spotted 55 | . 9 26 20 Peak Tracking Total 20 | . 8 9 20 Tactical Retreats 1 | . . . 1 Traps | -11 -10 -9 -9 ------- Run | Yrd Mat Mat Min Traps Triggered 1 | . . 1 . Indirectly . | . . . . Trap Hack Attempts . | . . . . Triggered . | . . . . Disarmed . | . . . . Reprogrammed . | . . . . Reused . | . . . . Traps Extracted . | . . . . Installed . | . . . . Triggered . | . . . . Machines | -11 -10 -9 -9 ---------- Run | Yrd Mat Mat Min Machines Disabled 2 | . 1 1 . Max in Single Turn 1 | . 1 1 . Machines Repaired . | . . . . Machines Dismantled . | . . . . Machines Sabotaged . | . . . . Overloaded Fab Kills . | . . . . Hacking | -11 -10 -9 -9 --------- Run | Yrd Mat Mat Min Machines Accessed 6 | . 2 4 . Terminals 5 | . 2 3 . Fabricators . | . . . . Repair Stations . | . . . . Recycling Units . | . . . . Scanalyzers 1 | . . 1 . Garrison Access . | . . . . Total Hacks 21 | . 10 11 . Successful 12 | . 5 7 . Failed 9 | . 5 4 . Catastrophic 4 | . 3 1 . Database Lockouts . | . . . . Manual 16 | . 9 7 . Terminals 18 | . 10 8 . Fabricators . | . . . . Repair Stations . | . . . . Recycling Units . | . . . . Scanalyzers 3 | . . 3 . Garrison Access . | . . . . Terminal Hacks 9 | . 5 4 . Robot Analysis 6 | . 4 2 . Prototype ID Bank 2 | . 1 1 . Hauler Manifests 1 | . . 1 . Fabricator Hacks . | . . . . Repair Station Hacks . | . . . . Recycling Unit Hacks . | . . . . Scanalyzer 2 | . . 2 . Insert Component 1 | . . 1 . Analyze 1 | . . 1 . Garrison Access Hacks . | . . . . Unauthorized Hacks 1 | . . 1 . Terminals . | . . . . Fabricators . | . . . . Repair Stations . | . . . . Recycling Units . | . . . . Scanalyzers 1 | . . 1 . Extract 1 | . . 1 . Garrison Access . | . . . . Data Cores Recovered . | . . . . Used . | . . . . Hacking Detections 6 | . 2 4 . Full Trace Events . | . . . . Feedback Events . | . . . . Feedback Blocked . | . . . . Robot Schematics Acquired . | . . . . Robots Built . | . . . . Authchips . | . . . . Time . | . . . . Total Robot Build Rating . | . . . . Part Schematics Acquired 3 | . . 3 . Parts Built . | . . . . Authchips . | . . . . Time . | . . . . Total Part Build Rating . | . . . . Parts Repaired . | . . . . Time . | . . . . Parts Recycled . | . . . . Recycled Matter . | . . . . Retrieved Matter . | . . . . Retrieved Components . | . . . . Parts Scanalyzed 1 | . . 1 . Part Schematics Acquired 1 | . . 1 . Parts Damaged . | . . . . Bothacking | -11 -10 -9 -9 ------------ Run | Yrd Mat Mat Min Used RIF Installer . | . . . . Robots Hacked . | . . . . Non-combat . | . . . . Combat . | . . . . Robot Hacks Applied . | . . . . Relay Couplers Released . | . . . . Fabnet Peak Effective % . | . . . . Robots Rewired . | . . . . Allies Hacked . | . . . . Hacks Repelled . | . . . . Allies | -11 -10 -9 -9 -------- Run | Yrd Mat Mat Min Total Allies . | . . . . Largest Group . | . . . . Highest-Rated Group . | . . . . Highest-Rated Ally . | . . . . Total Orders . | . . . . Ally Attacks . | . . . . Total Damage . | . . . . Kills . | . . . . Allies Corrupted . | . . . . Allies Melted . | . . . . Intel | -11 -10 -9 -9 ------- Run | Yrd Mat Mat Min Robot Analysis Total 6 | . 4 2 . Derelict Logs Recovered . | . . . . Drone Launches . | . . . . Drone Recoveries . | . . . . Exploration | -11 -10 -9 -9 ------------- Run | Yrd Mat Mat Min Turns Passed 1069 | 93 259 668 49 Spaces Moved 483 | 40 110 326 7 Core 12 | 6 . . 6 Treads 471 | 34 110 326 1 Legs . | . . . . Wheels . | . . . . Hover . | . . . . Flight . | . . . . Fastest Speed 50 | 50 160 160 50 Average Speed 157 | 146 160 160 65 Slowest Speed 240 | 160 160 240 160 Overloaded Moves . | . . . . Propulsion Burnouts . | . . . . Robots Hopped . | . . . . Cave-ins Triggered . | . . . . Exploration Rate (%) 16 | 4 22 33 5 Regions Visited 3 Branch Regions 1 Pre-discovered Areas . | . . . . Known Exits Taken . | . . . . Unknown Exits Taken 3 | 1 1 1 . Scrap Searched . | . . . . Spaces Dug . | . . . . Terrain Destroyed 1 | . . 1 . Melee . | . . . . Projectile 1 | . . 1 . AOE . | . . . . Terrain Rammed . | . . . . Walls Destroyed . | . . . . Machines Disabled . | . . . . Actions | -11 -10 -9 -9 --------- Run | Yrd Mat Mat Min Total 641 | 60 152 397 32 Wait 7 | . 1 2 4 Move 480 | 39 109 325 7 Hop . | . . . . Pick Up 23 | 8 6 9 . Fast Attach 16 | 6 1 9 . Attach 12 | 1 1 1 9 Detach . | . . . . Swap 8 | . 4 4 . Drop 16 | . 6 10 . Fire 77 | 6 22 37 12 Melee . | . . . . Ram . | . . . . Kick . | . . . . Crush 2 | . 2 . . Escape Stasis . | . . . . Rewire . | . . . . Trap . | . . . . Miscellaneous . | . . . . Route ------- -11/Scrapyard -10/Materials -9/Materials -9/Mines History --------- Turn | Location | Event 2 | -11/Scrapyard | Met Revision 17 19 | -11/Scrapyard | Discovered new exit (range 14) 94 | -11/Scrapyard | Entered Materials 170 | -10/Materials | Core integrity fell below 50% 189 | -10/Materials | Core integrity fell below 20% 312 | -10/Materials | Build established: Mutant 321 | -10/Materials | Discovered new exit (range 14) 353 | -10/Materials | Entered another Materials area 353 | -9/Materials | Evolved 2 slots: Utility x2 907 | -9/Materials | Discovered new exit (range 7) 1021 | -9/Materials | Entered Mines 1022 | -9/Mines | Assembled infested the area 1047 | -9/Mines | Core integrity fell below 50% 1061 | -9/Mines | Core integrity fell below 20% 1064 | -9/Mines | Released all parts (7) 1070 | -9/Mines | Destroyed by as-27943 with Assembled F-torch Last Messages --------------- 01055_ Acquired 9 matter. 01055_ Acquired 12 matter. 01055_ Acquired 3 matter. 01055_ as-64929 destroyed. 01055_ Adv. Beam Cannon destroyed. 01059_ Acquired 10 matter. 01059_ Imp. Treads destroyed. 01060_ Acquired 8 matter. 01060_ Acquired 2 matter. 01061_ Acquired 1 matter. 01061_ Acquired 3 matter. 01061_ Imp. Heat Sink destroyed. 01063_ Acquired 2 matter. 01064_ Released Imp. Light Cannon. 01064_ Released Utility Shielding. 01064_ Released Lrg. Storage Unit. 01064_ Released Lgt. Treads. 01064_ Released Imp. Treads. 01064_ Released Hpw. Tractor Beam. 01064_ Released Lgt. EM Pulse Cannon. Map ----- +----------------------------------------------------+ | ??????????????????????????????? | | ??????????????????????????????? | | ??????????????????????????????? | | ??????????????????????????????? | | ??????????????????????????????? | | ??????????????????????????????? | | ??????????????????????????????? | | ??????????????????????????????? | | ??????????????????????????????? | | ??????????????????????????????? | | ??????????????????????????????? | | ??????????????????????????????? | | ??????????????????????????????? | | ??????????????????????????????? | | ??????????????????????????????? | | ??????????????????????????????? | | ??????????????????????????????? | | ??????????????????????????????? | | ??????????????????????????????? | | ??????????????????????????????? | | ??????????????????????????????? | | ??????????????????????????????? | | ??????????????????????????????? | | ??????????????????????????????? | | ????####??????????????????????? | | ???## @#################??????? | | ???# a## !!= $ #??????? | | ??# a a =]! % % ??? | | ??# !!!aa a =]#######?????????? | | ??# ! ! #???????????????? | | ??# ! ##???????????????? | | ??# !!! ##????????????????? | | ??# ####?????????????????? | | ??########????????????????????? | | ??????????????????????????????? | | ??????????????????????????????? | | ??????????????????????????????? | | ??????????????????????????????? | | ??????????????????????????????? | | ??????????????????????????????? | | ??????????????????????????????? | | ??????????????????????????????? | | ??????????????????????????????? | | ??????????????????????????????? | | ??????????????????????????????? | | | | | | | | | | | +----------------------------------------------------+ Best States ------------- Heat Dissipation 52 Energy Generation 12 Energy Capacity 265 Matter Stores 300 Matter Capacity 300 Sight Range 16 Terrain Scan Density 85 Armor Coverage 150 Utility Shielding 33 Evasion (%) 40 Targeting Accuracy 6 Recoil Reduction 2 Item Schematics ----------------- Hpw. Tractor Beam | -9/Materials | Scanalyzed Hvy. Hammer | -9/Materials | Extracted Visual Processing Unit | -9/Materials | Extracted Robot Schematics ------------------ None Fabricated ------------ Nothing Alien Tech Used ----------------- None Achievements -------------- None Challenges ------------ None Game ------ Seed SkeletonRemoteFlightbrick Manual? 0 Play Time 00:10:23 Cumulative 326.0 hours Start 2024.05.05 @ 17:09:12 End 2024.05.05 @ 17:18:40 Sessions 1 Manual Loads 0 Difficulty Rogue Special Mode None Game No. 236 Rogue 236 Adventurer 0 Explorer 0 Win Type - Total 12 Types 8/0/3/1/0/0/0/0/0 Lore% 80 Gallery% 86 Achievement% 73 Wizard Run 0 Options --------- Layout 2 ASCII 1 Keyboard 0 Movement Mouse Keybinds 0 Fullscreen 2 Font 24/Smallcaps Map View 50x44 Zoom Use 0% Tactical HUD 1 Map Filters NONE Filters NONE Steam 1 RUN: 47f7beb9-414d-478e-a71b-2c7b63749cd4